bitfinex/quotes_ETHUSD_20260308
["timestamp","ask_amount","ask_price","bid_price","bid_amount"]
[1772988828749,1.80148713,1936.5,1936.2,0.0011]
[1772988829653,1.80148713,1936.5,1936.3,0.0011]
[1772988830157,0.51049742,1936.4,1936.3,0.0011]
[1772988830455,0.51049742,1936.4,1936.1,0.0011]
[1772988830945,0.51049742,1936.2,1936.1,0.0011]
[1772988831354,5.67429572,1936.6,1936.1,0.55492447]
[1772988831523,0.51049742,1936.5,1936.1,0.0011]
[1772988831722,0.51049742,1936.5,1935.6,0.55382447]
[1772988832940,1.80152374,1936.5,1935.8,0.55382447]
[1772988833259,0.51049742,1936.4,1935.8,0.55382447]
[1772988834558,0.51049742,1936.6,1935.8,0.55382447]
[1772988834963,1.80148631,1936.5,1936.0,0.55382447]
[1772988835258,0.51049742,1936.4,1936.0,0.55382447]
[1772988835629,0.51049742,1936.4,1935.9,0.55382447]
[1772988836558,0.51049742,1936.6,1935.9,0.55382447]
[1772988837150,1.80148631,1936.5,1936.0,0.55382447]
[1772988837967,0.51049742,1936.4,1936.0,0.55382447]
[1772988839261,1.80157704,1936.4,1936.0,0.55382447]
[1772988840569,0.51049742,1936.3,1936.0,0.55382447]
[1772988841062,0.51049742,1936.3,1936.0,1.84514518]
[1772988841265,1.426,1936.8,1936.3,0.55382447]
[1772988841266,1.93649742,1936.8,1936.3,0.55382447]
[1772988841469,1.80130155,1936.8,1936.3,0.55382447]
[1772988841637,0.51149742,1936.4,1936.1,0.0011]
[1772988842542,0.51149742,1936.4,1936.1,0.55492447]
[1772988842743,0.001,1936.4,1936.2,0.5071257]
[1772988843534,0.001,1936.4,1936.1,0.0011]
[1772988843843,0.55297129,1936.4,1936.1,0.0011]
[1772988844455,0.55297129,1936.4,1936.1,0.5082257]
[1772988844656,0.55297129,1936.4,1936.1,0.0011]
[1772988846247,0.001,1936.4,1936.1,0.55523573]
[1772988846470,1.2908591,1936.7,1936.2,0.55413573]
[1772988846843,1.29084221,1936.8,1936.2,0.55413573]
[1772988847039,0.55947044,1936.7,1936.2,0.55413573]
[1772988847667,0.55947044,1936.7,1936.3,1.29112224]
[1772988847855,0.55947044,1936.7,1936.3,1.84525797]
[1772988848675,1.85124174,1936.9,1936.4,0.55413573]
[1772988849574,0.55947044,1936.8,1936.4,0.55413573]
[1772988849959,0.55947044,1936.8,1936.4,1.84516834]
[1772988850582,1.85026464,1936.8,1936.4,1.84516834]
[1772988850765,0.55947044,1936.8,1936.4,1.84516834]
[1772988853152,0.55947044,1936.8,1936.5,0.55413573]
[1772988853472,0.001,1936.7,1936.5,0.55413573]
[1772988855185,0.001,1936.7,1936.5,1.84510964]
[1772988856184,0.001,1936.7,1936.5,0.55413573]
[1772988856697,0.001,1936.7,1936.5,1.84511368]
[1772988863694,0.56047044,1936.7,1936.2,5.71873762]
[1772988863897,0.56047044,1936.7,1936.3,0.55413573]
[1772988865591,0.56047044,1936.7,1936.4,1.29105556]
[1772988865792,0.56047044,1936.7,1936.5,0.0011]
[1772988865989,0.001,1936.6,1936.5,0.0011]
[1772988866592,0.56047044,1936.6,1936.5,0.0011]
[1772988872771,0.001,1936.7,1936.5,0.55664108]
[1772988875100,0.001,1936.7,1936.5,1.84759327]
[1772988876805,0.001,1936.7,1936.5,1.29205219]
[1772988877007,0.52510884,1936.7,1936.5,1.29205219]
[1772988877308,0.52510884,1936.7,1936.5,0.0011]
[1772988877776,0.52510884,1936.7,1936.6,0.0011]
[1772988881485,1.81596441,1936.7,1936.6,0.0011]
[1772988881997,0.52410884,1936.6,1936.4,0.0011]
[1772988883016,0.52410884,1936.5,1936.4,0.0011]
[1772988884717,0.52510884,1936.7,1936.4,0.55664108]
[1772988885325,0.52510884,1936.7,1936.4,0.0011]
[1772988886217,0.52510884,1936.7,1936.5,1.29098889]
[1772988886518,0.52510884,1936.7,1936.4,0.0011]
[1772988888317,0.52410884,1936.6,1936.4,0.0011]
[1772988890198,0.52410884,1936.6,1936.5,0.0011]
[1772988890400,0.001,1936.6,1936.5,0.0011]
[1772988890632,0.001,1936.6,1936.5,0.55664108]
[1772988892412,0.52510884,1936.9,1936.6,0.55554108]
[1772988894422,0.52510884,1936.9,1936.6,1.84643943]
[1772988894720,0.52510884,1936.9,1936.6,1.29092043]
[1772988898994,0.52510884,1936.9,1936.5,1.84758926]
[1772988899326,0.001,1937.4,1936.6,0.55554108]
[1772988899534,0.001,1937.7,1937.1,0.55554108]
[1772988899702,0.001,1937.8,1937.3,0.55554108]
[1772988899703,0.52410884,1937.8,1937.3,0.55554108]
[1772988900212,0.52410884,1937.8,1937.1,1.84607933]
[1772988900526,0.52410884,1937.8,1937.2,0.55554108]
[1772988902226,0.52410884,1937.6,1937.2,1.84603067]
[1772988905100,0.52410884,1937.6,1937.2,1.82629148]
[1772988905327,0.52410884,1937.6,1937.3,0.53580189]
[1772988907734,0.5045541,1937.5,1937.1,1.82634808]
[1772988908232,0.5045541,1937.5,1937.1,1.29054619]
[1772988908528,0.5045541,1937.5,1937.0,1.82640724]
[1772988908925,0.5045541,1937.4,1937.0,1.82640724]
[1772988909227,0.5045541,1937.4,1937.1,0.53580189]
[1772988911237,0.5045541,1937.4,1937.1,1.82635955]
[1772988911738,0.5045541,1937.4,1937.1,0.53580189]
[1772988913214,0.5045541,1937.4,1937.1,1.82638723]
[1772988913848,0.5045541,1937.5,1937.2,0.53580189]
[1772988914137,0.5045541,1937.5,1937.2,0.53690189]
[1772988914920,0.5045541,1937.5,1937.2,0.0011]
[1772988915370,1.79490243,1937.5,1937.2,0.0011]
[1772988915732,0.5045541,1937.4,1937.2,0.0011]
[1772988917614,1.29030877,1937.6,1937.2,0.0011]
[1772988917615,1.29030877,1937.6,1937.2,0.53690189]
[1772988917938,0.5045541,1937.5,1937.2,0.53690189]
[1772988919013,0.5045541,1937.5,1937.0,0.0011]
[1772988919552,1.29038918,1937.4,1937.0,0.0011]
[1772988919851,0.5045541,1937.3,1937.0,0.0011]
[1772988920052,0.5045541,1937.1,1936.5,1.38541586]
[1772988920251,0.5045541,1937.1,1936.5,2.67639028]
[1772988921822,0.5045541,1936.9,1936.5,2.67639028]
[1772988922826,0.5045541,1936.9,1936.5,1.38541586]
[1772988923032,0.5045541,1937.1,1936.6,0.53580189]
[1772988923431,1.423,1937.2,1936.6,0.53580189]
[1772988923658,0.5045541,1937.5,1936.7,0.53580189]
[1772988923860,0.5045541,1937.5,1936.8,1.29078893]
[1772988924034,0.5045541,1937.4,1936.9,0.53580189]
[1772988925962,0.5045541,1937.4,1937.1,0.53580189]
[1772988926772,0.5055541,1937.4,1937.1,0.53580189]
[1772988927938,0.5055541,1937.4,1937.1,1.82635691]
[1772988938062,0.5055541,1937.4,1937.2,0.0011]
[1772988938379,0.001,1937.3,1937.2,0.0011]
[1772988939157,0.52927394,1937.5,1937.2,0.0011]
[1772988946781,1.81959768,1937.5,1937.2,0.0011]
[1772988948162,1.29032374,1937.5,1937.2,0.0011]
[1772988948356,0.52927394,1937.4,1937.2,0.0011]
[1772988950589,0.001,1937.3,1937.2,0.0011]
[1772988953092,0.53027394,1937.3,1937.2,0.0011]
[1772988953460,0.001,1937.7,1937.3,0.54410008]
[1772988953788,0.52927394,1937.6,1937.2,0.54520008]
[1772988954881,0.52927394,1937.6,1937.2,0.0011]
[1772988955270,0.52927394,1937.4,1937.2,0.0011]
[1772988962121,1.8196474,1937.5,1937.3,0.0011]
[1772988963023,0.53823555,1937.4,1937.0,0.49489726]
[1772988964138,0.53823555,1937.3,1937.0,0.0011]
[1772988966634,1.82874431,1937.3,1937.0,0.0011]
[1772988968911,1.29050876,1937.3,1937.0,0.0011]
[1772988969110,0.49951662,1937.2,1937.0,0.0011]
[1772988971337,1.79010564,1937.1,1937.0,0.0011]
[1772988972321,0.49951662,1937.1,1937.0,0.0011]
[1772988972637,1.79001347,1937.3,1937.0,0.53956169]
[1772988972839,0.49951662,1937.2,1937.0,0.0011]
[1772988973811,0.49951662,1937.2,1937.1,0.0011]
[1772988974212,0.50051662,1937.2,1937.1,0.0011]
[1772988975337,0.001,1937.2,1937.1,0.53956169]
[1772988976427,0.001,1937.2,1937.1,0.0011]
[1772988978646,0.001,1937.2,1937.1,0.53956169]
[1772988979218,0.001,1937.2,1937.1,0.0011]
[1772988979845,0.50051662,1937.2,1937.1,0.0011]
[1772988981945,0.001,1937.2,1937.1,0.0011]
[1772988982334,0.001,1937.2,1937.1,0.53956169]
[1772988986940,0.001,1937.2,1937.1,0.0011]
[1772988992635,0.001,1937.2,1937.1,0.53956169]
[1772988993764,0.001,1937.2,1937.1,1.83015071]
[1772988996944,0.51538709,1937.6,1937.2,0.48906069]
[1772988997994,0.001,1937.7,1937.2,0.49016069]
[1772988998146,1.80658309,1937.7,1937.2,0.49016069]
[1772988999547,0.51638709,1937.7,1937.4,0.48906069]
[1772988999842,0.001,1937.7,1937.4,0.48906069]
[1772989004139,0.42287984,1938.0,1937.4,0.48906069]
[1772989004539,0.93826693,1938.0,1937.4,0.48906069]
[1772989004740,2.22825726,1938.0,1937.4,0.48906069]
[1772989004955,0.51538709,1938.6,1937.4,0.48906069]
[1772989006245,0.51538709,1938.4,1937.6,0.48906069]
[1772989007565,1.433,1938.4,1937.6,0.48906069]
[1772989007772,0.51538709,1938.3,1937.6,0.48906069]
[1772989008249,0.51538709,1938.3,1937.8,0.48906069]
[1772989008839,2.72275286,1938.4,1937.8,0.48906069]
[1772989009035,0.51538709,1938.5,1937.8,0.48906069]
[1772989009942,0.001,1938.5,1937.8,0.48906069]
[1772989010758,0.001,1938.5,1937.9,1.29005624]
[1772989011076,0.51538709,1938.6,1938.0,0.48906069]
[1772989012700,0.51538709,1938.5,1937.8,0.48906069]
[1772989012844,0.51538709,1938.3,1937.8,0.48906069]
[1772989013989,0.51538709,1938.3,1937.4,0.48906069]
[1772989014973,0.51538709,1938.1,1937.4,0.48906069]
[1772989015189,0.51538709,1938.0,1937.4,0.48906069]
[1772989016292,3.23924365,1938.2,1937.4,0.48906069]
[1772989017795,1.94938709,1938.2,1937.5,1.29032258]
[1772989018006,0.51538709,1938.1,1937.6,0.48906069]
[1772989019156,2.72387539,1938.2,1937.6,0.48906069]
[1772989019614,3.23926248,1938.2,1937.6,0.48906069]
[1772989019986,1.94938709,1938.2,1937.8,0.48906069]
[1772989020368,1.28979524,1938.3,1937.8,0.48906069]
[1772989020584,3.23917401,1938.4,1937.8,0.48906069]
[1772989020792,2.72374183,1938.4,1937.8,0.48906069]
[1772989021092,0.51538709,1938.3,1937.8,0.48906069]
[1772989021499,0.51538709,1938.3,1937.9,0.0011]
[1772989021798,0.51638709,1938.4,1937.9,0.49016069]
[1772989021987,0.51638709,1938.4,1938.1,0.48906069]
[1772989022984,1.80611068,1938.4,1938.1,0.48906069]
[1772989023203,0.51638709,1938.4,1938.1,0.48906069]
[1772989025177,0.51638709,1938.4,1938.1,1.77897648]
[1772989025577,0.51638709,1938.4,1938.1,0.48906069]
[1772989025797,0.51638709,1938.4,1938.1,1.77897867]
[1772989026298,0.001,1938.4,1938.2,0.49860302]
[1772989028076,0.5016152,1938.4,1938.1,0.49860302]
[1772989029796,1.433,1938.7,1938.1,0.49860302]
[1772989029999,1.9336152,1938.7,1938.1,0.49860302]
[1772989030374,1.9336152,1938.7,1938.3,0.49860302]
[1772989030600,0.5006152,1938.6,1938.3,0.49860302]
[1772989032602,1.9336152,1938.7,1938.4,0.49860302]
[1772989034307,0.001,1938.5,1938.4,0.49860302]
[1772989034510,1.9336152,1938.7,1938.4,0.49860302]
[1772989034805,1.9336152,1938.7,1938.4,1.78830029]
[1772989035194,0.5006152,1938.8,1938.5,0.49860302]
[1772989035908,0.5006152,1938.7,1938.2,1.29091242]
[1772989036108,0.5006152,1938.7,1938.2,1.78951544]
[1772989036781,1.79019069,1938.7,1938.3,0.49860302]
[1772989036981,0.5006152,1938.6,1938.3,0.49860302]
[1772989039010,0.5006152,1938.6,1938.3,1.78838086]
[1772989039806,1.28957549,1938.7,1938.3,1.78838086]
[1772989040011,1.79019069,1938.7,1938.3,1.78838086]
[1772989041514,1.79019069,1938.7,1938.3,0.49860302]
[1772989043824,0.5006152,1938.6,1938.2,0.0011]
[1772989044025,1.79013773,1938.8,1938.3,0.49860302]
[1772989044232,0.5006152,1938.7,1938.3,0.49860302]
[1772989044407,0.5006152,1938.7,1938.2,0.49970302]
[1772989044931,0.5006152,1938.7,1938.3,0.49860302]
[1772989046430,1.79017105,1938.7,1938.3,0.49860302]
[1772989046633,1.79014076,1938.7,1938.3,1.78837399]
[1772989046841,0.5006152,1938.7,1938.4,0.49860302]
[1772989047120,0.5006152,1938.7,1938.4,0.49970302]
[1772989047324,0.001,1938.6,1938.4,0.49970302]
[1772989048027,0.5006152,1938.7,1938.4,0.49970302]
[1772989048392,1.79013962,1938.7,1938.4,0.49970302]
[1772989056379,0.46901948,1938.6,1938.4,0.0011]
[1772989057978,1.28941129,1938.9,1938.5,0.5114388]
[1772989058216,1.90301948,1938.9,1938.5,0.5114388]
[1772989058494,1.88655834,1939.0,1938.5,0.5114388]
[1772989058793,1.41753886,1939.0,1938.5,0.5114388]
[1772989059298,1e-08,1939.0,1938.5,0.5114388]
[1772989059671,1.75834893,1939.0,1938.5,0.5114388]
[1772989059872,1.75834893,1939.0,1938.5,1.29072636]
[1772989060090,0.001,1938.8,1938.6,0.5114388]
[1772989060611,0.46901949,1939.0,1938.6,0.5114388]
[1772989061702,1e-08,1939.0,1938.6,0.5114388]
[1772989062210,1e-08,1939.0,1938.7,1.8009627]
[1772989062570,0.46901948,1939.6,1938.8,0.5114388]
[1772989062778,0.46901948,1939.4,1938.8,0.5114388]
[1772989062964,0.46901948,1939.4,1938.7,1.2895239]
[1772989063599,0.46901948,1939.4,1938.7,1.8009627]
[1772989064168,0.46901948,1939.2,1938.7,1.8009627]
[1772989065088,0.46901948,1939.2,1938.8,0.5114388]
[1772989066302,1.28924924,1939.2,1938.8,0.5114388]
[1772989066468,0.46901948,1939.1,1938.8,0.5114388]
[1772989069729,0.46901948,1939.0,1938.5,1.29070403]
[1772989070019,0.46901948,1939.0,1938.5,0.0011]
[1772989070225,0.46901948,1938.8,1938.5,0.0011]
[1772989073137,1.75854338,1938.7,1938.5,0.0011]
[1772989073304,0.46901948,1938.7,1938.5,0.0011]
[1772989073631,0.46901948,1938.7,1938.6,0.0011]
[1772989075122,1.75854338,1938.7,1938.6,0.0011]
[1772989075424,0.46901948,1938.7,1938.6,0.0011]
[1772989076517,1.75854338,1938.7,1938.6,0.0011]
[1772989076704,1.75854338,1938.7,1938.5,0.0011]
[1772989077732,0.46901948,1938.7,1938.5,0.0011]
[1772989077934,1.75854562,1938.7,1938.5,0.0011]
[1772989084738,0.50650999,1938.5,1936.9,0.0011]
[1772989084944,9.31060728,1938.6,1936.9,0.0011]
[1772989084945,0.50650999,1937.8,1937.0,0.52033676]
[1772989085232,1.432,1937.7,1937.3,0.5176979]
[1772989085432,1.93850999,1937.7,1937.3,0.5176979]
[1772989086326,3.2287439,1937.7,1937.3,0.5176979]
[1772989087440,1.79670214,1937.7,1937.4,0.0033]
[1772989087736,3.19570214,1937.7,1937.4,0.0033]
[1772989088035,0.50650999,1937.6,1937.4,0.0033]
[1772989088330,0.50650999,1937.6,1937.3,0.5176979]
[1772989088531,0.50650999,1937.6,1937.4,0.0033]
[1772989088720,0.50650999,1937.5,1937.3,0.0033]
[1772989089123,0.50650999,1937.5,1937.2,0.0011]
[1772989089321,0.50650999,1937.5,1937.3,0.0033]
[1772989090231,0.50650999,1938.0,1937.3,0.5176979]
[1772989090437,1.91550999,1938.0,1937.5,0.5176979]
[1772989090637,1.91450999,1938.0,1937.5,0.5176979]
[1772989091529,1.28996564,1938.1,1937.7,0.5176979]
[1772989091737,1.411,1938.1,1937.7,0.5176979]
[1772989092239,1.91750999,1938.1,1937.7,0.5176979]
[1772989093020,1.02420789,1937.7,1936.5,0.0011]
[1772989093335,0.0044,1936.1,1936.0,0.00263886]
[1772989093514,0.00263886,1936.0,1935.9,0.00263886]
[1772989093704,1.59758355,1936.1,1935.9,0.00263886]
[1772989093910,1.59494469,1936.1,1935.8,1.47988306]
[1772989094113,0.50650999,1936.4,1935.8,1.47988306]
[1772989094442,1.80578521,1936.4,1935.8,1.47988306]
[1772989094607,0.50650999,1936.3,1935.8,0.18844335]
[1772989094811,1.80578521,1936.3,1935.8,1.47989879]
[1772989095927,3.09691112,1936.3,1935.8,1.47989879]
[1772989096244,1.80578521,1936.3,1935.8,1.47989879]
[1772989096447,1.80578521,1936.3,1935.8,1.47989103]
[1772989096448,3.09691086,1936.3,1935.8,1.47989103]
[1772989097818,3.09691086,1936.3,1935.8,0.18844335]
[1772989098425,3.09691086,1936.3,1935.9,0.001]
[1772989101447,1.79763564,1936.3,1935.9,0.001]
[1772989101651,1.79763564,1936.3,1935.9,0.5186979]
[1772989101838,1.7976455,1936.3,1935.9,0.5186979]
[1772989106750,1.7976455,1936.3,1935.9,1.81008524]
[1772989106930,0.50650999,1936.3,1935.9,1.81008524]
[1772989107454,0.50650999,1936.3,1936.0,0.5176979]
[1772989108032,2.69210382,1936.4,1936.0,0.5176979]
[1772989109736,1.29110382,1936.4,1936.1,0.5176979]
[1772989110024,1.408,1936.4,1936.1,0.5176979]
[1772989110223,2.69905763,1936.4,1936.1,0.5176979]
[1772989110722,0.50650999,1936.3,1935.9,0.001]
[1772989110931,0.065536,1935.8,1934.1,3.78888817]
[1772989111143,0.50650999,1935.4,1934.0,1.81182834]
[1772989111344,1.20635859,1935.4,1934.0,1.81183882]
[1772989111562,0.50650999,1935.3,1934.0,1.81183882]
[1772989111955,0.50650999,1935.3,1934.1,0.00263886]
[1772989112151,0.50650999,1935.2,1934.1,0.00263886]
[1772989112348,0.50650999,1935.0,1934.1,0.00263886]
[1772989113040,0.48040143,1934.8,1934.1,0.00263886]
[1772989113565,1.77243934,1935.0,1934.1,0.47380371]
[1772989113860,1.31,1934.9,1934.2,0.47116485]
[1772989114064,1.79040143,1934.9,1934.2,0.47116485]
[1772989114865,0.48040143,1934.8,1934.2,0.47116485]
[1772989115972,0.48040143,1934.8,1934.3,1.29245721]
[1772989117176,1.29152244,1935.7,1934.4,0.47380371]
[1772989117380,0.48040143,1935.5,1934.4,0.47380371]
[1772989117973,0.48040143,1935.3,1934.6,0.47116485]
[1772989120190,1.29185613,1935.2,1934.6,1.7633953]
[1772989120363,1.77220046,1935.3,1934.6,1.7633953]
[1772989120565,1.77220046,1935.3,1934.7,0.47380371]
[1772989120784,0.48040143,1935.3,1934.7,0.47380371]
[1772989121557,1.77219199,1935.3,1934.7,0.47380371]
[1772989122497,3.14919199,1935.3,1934.7,1.76594237]
[1772989123199,1.7721912,1935.3,1934.8,0.47116485]
[1772989123494,0.48040143,1935.2,1934.9,0.00263886]
[1772989123672,0.48040143,1935.2,1934.8,0.00263886]
[1772989124074,0.48140143,1935.2,1934.8,0.00263886]
[1772989124487,1.77330163,1935.2,1934.8,0.00263886]
[1772989126565,0.48040143,1935.1,1934.8,0.00263886]
[1772989128797,0.48040143,1934.9,1934.3,0.47226485]
[1772989128969,1.89040143,1934.8,1934.3,0.47226485]
[1772989130278,1.77239109,1935.0,1934.3,0.47226485]
[1772989130483,1.415,1934.9,1934.3,0.47226485]
[1772989130804,3.1874756,1934.9,1934.4,1.76355525]
[1772989132210,3.18748183,1934.9,1934.5,0.47116485]
[1772989132385,1.89540143,1934.9,1934.5,0.47116485]
[1772989132805,1.408,1934.9,1934.6,1.76342164]
[1772989133407,1.408,1934.9,1934.6,0.47116485]
[1772989134810,1.408,1934.9,1934.6,1.76336233]
[1772989135513,1.417,1935.0,1934.7,0.47116485]
[1772989136710,0.001,1934.8,1934.7,0.47116485]
[1772989136913,0.001,1934.8,1934.7,1.76335485]
[1772989137129,1.29290586,1935.2,1934.8,0.47116485]
[1772989137312,2.71390586,1935.2,1934.8,0.47116485]
[1772989137623,2.71390586,1935.2,1934.4,0.0011]
[1772989137624,0.48040143,1935.1,1934.4,0.0011]
[1772989139391,0.48040143,1934.9,1934.4,0.0011]
[1772989140320,0.48040143,1934.9,1934.4,0.47226485]
[1772989140526,1.90540143,1934.8,1934.4,0.0011]
[1772989141206,1.426,1934.9,1934.4,0.0011]
[1772989141524,1.426,1934.9,1934.5,1.29232359]
[1772989141939,1.426,1934.9,1934.5,1.76348844]
[1772989142225,2.71992289,1935.1,1934.6,0.47116485]
[1772989142430,3.20032432,1935.1,1934.6,0.47116485]
[1772989143039,1.90840143,1935.1,1934.6,0.47116485]
[1772989143323,1.29287266,1935.2,1934.7,1.29219]
[1772989143496,1.29287266,1935.2,1934.7,1.7553782]
[1772989143900,0.001,1935.2,1934.8,0.4631882]
[1772989145812,0.4716454,1935.2,1934.6,0.50409626]
[1772989146024,0.4716454,1935.2,1934.6,1.79630627]
[1772989146318,5.16635271,1935.8,1934.7,0.50409626]
[1772989146319,0.4706454,1935.8,1934.7,0.50409626]
[1772989147739,0.4706454,1935.6,1934.8,1.29212321]
[1772989148234,0.4706454,1935.6,1934.9,0.0011]
[1772989148608,0.001,1935.1,1934.9,0.0011]
[1772989149634,0.4706454,1935.6,1935.0,0.50409626]
[1772989149934,0.4706454,1935.5,1935.0,1.79604686]
[1772989152122,1.76231894,1935.5,1935.0,0.50409626]
[1772989152431,0.4706454,1935.4,1935.0,1.79607772]
[1772989153330,0.4706454,1935.4,1935.0,0.50409626]
[1772989153522,0.4706454,1935.4,1934.9,1.29311799]
[1772989154041,1.76238471,1935.4,1934.9,1.29311799]
[1772989154244,1.76239066,1935.4,1934.9,1.79721425]
[1772989155946,0.4706454,1935.3,1934.9,1.79721425]
[1772989156157,1.76248135,1935.3,1934.9,0.0011]
[1772989156551,2.59638437,1935.2,1934.6,0.0011]
[1772989156855,0.4706454,1934.8,1933.7,0.0011]
[1772989157023,0.4706454,1934.6,1933.7,0.50409626]
[1772989157222,1.9006454,1934.5,1933.8,0.50519626]
[1772989157422,0.4706454,1934.5,1933.8,0.50409626]
[1772989157622,1.8856454,1934.8,1934.0,0.50409626]
[1772989157849,1.415,1934.8,1934.0,0.50409626]
[1772989158045,0.4706454,1934.7,1934.1,1.29259086]
[1772989159131,0.4706454,1934.6,1934.0,0.50409626]
[1772989159452,0.4706454,1934.6,1934.1,0.0011]
[1772989159626,0.4706454,1934.6,1934.0,1.29261536]
[1772989160329,1.76292348,1934.6,1934.1,0.0011]
[1772989160529,0.4706454,1934.6,1934.0,0.0011]
[1772989160822,1.8856454,1934.8,1934.1,0.50519626]
[1772989161023,0.00153886,1935.0,1934.3,0.50409626]
[1772989161951,0.47218426,1935.0,1934.4,0.0011]
[1772989162926,0.47218426,1935.0,1934.4,0.50519626]
[1772989163353,0.00153886,1935.0,1934.4,0.50519626]
[1772989164955,0.00153886,1935.0,1934.5,1.29232359]
[1772989165278,0.00153886,1935.0,1934.6,0.50409626]
[1772989165689,0.001,1935.1,1934.7,0.50519626]
[1772989165904,0.001,1935.1,1934.7,0.50409626]
[1772989166681,0.001,1935.1,1934.9,0.50409626]
[1772989167368,1.76228169,1935.6,1934.9,1.7961095]
[1772989167570,0.4706454,1935.5,1934.8,1.29207189]
[1772989169376,0.4706454,1935.4,1934.8,1.29207189]
[1772989170482,0.4706454,1935.4,1934.9,0.50409626]
[1772989170674,0.4706454,1935.7,1934.9,0.50409626]
[1772989171270,0.4706454,1935.6,1934.9,0.50409626]
[1772989171466,1.76226828,1935.6,1935.0,1.29198966]
[1772989171670,0.4706454,1935.6,1935.0,1.79608592]
[1772989171873,1.76211802,1935.8,1935.1,0.50409626]
[1772989172179,0.4706454,1935.7,1935.1,0.50409626]
[1772989172762,1.78449545,1935.9,1935.1,0.50409626]
[1772989173297,0.001,1935.6,1935.1,0.50409626]
[1772989173666,0.001,1935.6,1935.3,0.460958]
[1772989174490,1.29291794,1936.0,1935.3,0.460958]
[1772989174491,0.4946453,1936.0,1935.3,0.460958]
[1772989175099,0.00153886,1936.0,1935.3,0.460958]
[1772989175704,0.00153886,1936.0,1935.5,0.460958]
[1772989177179,1.78531218,1936.2,1935.5,0.460958]
[1772989177180,1.7853126,1936.2,1935.5,0.460958]
[1772989177376,0.001,1936.2,1935.5,0.460958]
[1772989177769,0.001,1936.2,1935.6,1.75254717]
[1772989177967,0.49410644,1936.2,1935.6,1.75254717]
[1772989180201,0.49310644,1936.1,1935.5,1.29162285]
[1772989182627,1.78436988,1936.1,1935.5,0.460958]
[1772989183322,0.49310644,1936.1,1935.5,0.460958]
[1772989183824,1.78436569,1936.1,1935.5,0.460958]
[1772989183994,0.49310644,1936.1,1935.5,0.460958]
[1772989184305,0.001,1936.2,1935.5,0.460958]
[1772989184689,0.001,1936.2,1935.7,0.460958]
[1772989185400,0.001,1936.2,1935.8,0.460958]
[1772989186826,1.78400925,1936.7,1936.0,0.460958]
[1772989186827,0.49310644,1936.7,1936.0,0.460958]
[1772989187036,1.78397227,1936.7,1936.0,0.460958]
[1772989187323,0.49310644,1936.6,1936.0,0.460958]
[1772989188704,1.78391748,1936.8,1936.1,1.75221361]
[1772989189945,0.49310644,1936.7,1936.1,1.75221361]
[1772989190944,1.78399851,1936.7,1936.1,1.75221361]
[1772989192242,1.78530679,1937.0,1936.2,0.460958]
[1772989192445,0.49310644,1936.9,1936.2,0.460958]
[1772989193846,0.49310644,1936.9,1936.3,1.29112224]
[1772989194156,0.49310644,1936.9,1936.3,1.75208024]
[1772989196047,0.00153886,1937.0,1936.4,0.460958]
[1772989196358,0.4946453,1937.0,1936.4,0.460958]
[1772989197531,0.001,1936.8,1936.4,0.460958]
[1772989197954,0.001,1936.8,1936.5,1.29098889]
[1772989198153,0.49310644,1936.7,1936.2,0.0011]
[1772989198455,0.001,1936.8,1936.3,0.460958]
[1772989199151,0.49410644,1936.8,1936.3,0.460958]
[1772989200152,0.49410644,1936.8,1936.4,1.29105556]
[1772989200536,0.49310644,1937.3,1936.5,0.460958]
[1772989200734,0.49310644,1937.5,1936.5,0.460958]
[1772989201335,0.49310644,1937.5,1936.6,0.460958]
[1772989202044,0.49310644,1937.5,1936.3,0.460958]
[1772989202243,0.49310644,1937.3,1936.3,1.29110091]
[1772989202758,1.29038918,1937.4,1936.2,5.16580993]
[1772989202759,0.47802792,1937.1,1936.2,0.0011]
[1772989203251,0.47802792,1937.0,1936.2,1.29228482]
[1772989203573,0.47802792,1937.0,1936.2,1.75224768]
[1772989204056,1.29078893,1936.8,1936.0,0.00263886]
[1772989204255,0.47802792,1936.7,1936.0,0.46260172]
[1772989204926,3.12268134,1936.9,1936.0,0.46260172]
[1772989205327,0.46590838,1936.8,1936.0,0.46260172]
[1772989206962,0.46590838,1936.8,1936.1,1.29125561]
[1772989207161,0.46590838,1936.8,1936.1,1.77192624]
[1772989207371,0.46590838,1936.8,1936.2,0.48067063]
[1772989207725,0.46590838,1937.3,1936.2,0.48067063]
[1772989208345,0.46590838,1937.5,1936.4,0.48067063]
[1772989209554,1.75624003,1937.5,1936.6,0.48067063]
[1772989209777,0.46690838,1937.4,1936.6,0.48067063]
[1772989210365,0.46690838,1937.4,1936.5,1.29098889]
[1772989211533,0.46590838,1937.2,1936.4,5.64462621]
[1772989211933,0.46590838,1937.2,1936.5,0.48067063]
[1772989213343,0.001,1937.4,1936.5,0.48067063]
[1772989213756,0.001,1937.4,1936.7,0.48067063]
[1772989215982,0.001,1937.4,1936.8,1.77145956]
[1772989216261,0.001,1937.4,1936.9,0.48067063]
[1772989217474,0.46590838,1937.8,1937.0,0.48067063]
[1772989218270,0.46744724,1938.0,1937.0,0.48067063]
[1772989218568,0.00153886,1938.0,1937.2,0.48067063]
[1772989219066,0.46590838,1937.9,1937.2,0.48067063]
[1772989219368,0.46590838,1937.9,1937.1,1.29058902]
[1772989219544,0.46590838,1937.9,1937.1,1.77125965]
[1772989219743,0.46590838,1937.9,1937.2,0.48067063]
[1772989220481,0.46590838,1937.7,1936.8,0.48067063]
[1772989221571,0.46590838,1937.7,1937.2,0.0011]
[1772989222761,1.7561427,1937.7,1937.2,0.0011]
[1772989223776,0.46590838,1937.6,1937.2,0.0011]
[1772989225076,1.75619579,1937.6,1937.2,0.0011]
[1772989225496,0.46590838,1937.5,1937.2,0.0011]
[1772989226004,1.75611343,1937.7,1937.2,0.0011]
[1772989226287,0.46590838,1937.7,1937.2,0.0011]
[1772989226448,0.001,1937.8,1937.2,0.48177063]
[1772989227002,0.001,1937.8,1937.3,1.29045578]
[1772989227293,0.001,1937.8,1937.3,1.77112641]
[1772989228971,0.46690838,1937.8,1937.3,1.77112641]
[1772989229167,0.46690838,1937.8,1937.3,1.77112289]
[1772989229398,0.46690838,1937.8,1937.3,1.29045226]
[1772989231503,0.46590838,1937.7,1937.2,0.0011]
[1772989233590,0.46590838,1937.7,1937.2,0.4708688]
[1772989233902,0.001,1937.8,1937.2,0.4708688]
[1772989234083,1.78355461,1937.8,1937.2,0.0011]
[1772989234674,1.78356148,1937.8,1937.2,0.0011]
[1772989234970,0.4934289,1937.8,1937.2,0.4708688]
[1772989235176,0.001,1937.8,1937.2,0.4708688]
[1772989235703,0.001,1937.8,1937.4,0.4697688]
[1772989236617,0.001,1937.8,1937.3,1.29045578]